[Event "Polish Youth G18 Championship 2023"]
[Site "Jastrzebia Gora"]
[Date "2023.03.13"]
[Round "2.5"]
[White "Mroz, Lena"]
[Black "Bukala, Weronika"]
[Result "1-0"]
[ECO "B13"]
[WhiteElo "1635"]
[BlackElo "1899"]
[Annotator "NA RC COMBH"]
[PlyCount "141"]
[EventDate "2023.03.11"]
[EventType "swiss"]
[EventCountry "POL"]
[SourceTitle "playchess.com"]
[Source "ChessBase"]
[SourceQuality "1"]
[TimeControl "40/5400+30:1800+30"]

1. e4 {[%emt 0:00:02]} c6 {[%emt 0:00:31]} 2. d4 {[%emt 0:00:04]} d5 {[%emt 0:00:05]} 3. exd5 {[%emt 0:03:21]} cxd5 {[%emt 0:00:53]} 4. Bd3 {[%emt 0:00:11]} Nc6 {[%emt 0:00:51]} 5. c3 {[%emt 0:00:07]} Nf6 {[%emt 0:00:42]} 6. Ne2 {[%emt 0:00:24]} g6 {[%emt 0:00:43]} 7. O-O {[%emt 0:00:58]} Bf5 {[%emt 0:00:20]} 8. f3 {[%emt 0:06:08]} Bxd3 {[%emt 0:02:38]} 9. Qxd3 {[%emt 0:00:11]} Bg7 {[%emt 0:00:06]} 10. Be3 {[%emt 0:06:41]} O-O {[%emt 0:00:38]} 11. Nd2 {[%emt 0:04:09]} Rc8 {[%emt 0:04:28]} 12. Nb3 {[%emt 0:04:31]} Nd7 {[%emt 0:06:17]} 13. Rad1 {[%emt 0:06:29]} Nb6 {[%emt 0:02:06]} 14. Bf4 {[%emt 0:05:28]} Nc4 {[%emt 0:01:49]} 15. Qb1 {[%emt 0:04:16]} N6a5 {[%emt 0:18:20]} ({Black should try} 15... Re8 $15) 16. Nxa5 {[%emt 0:08:33]} Qxa5 {[%emt 0:00:28]} 17. Kh1 {[%emt 0:02:45]} b5 {[%emt 0:04:38]} 18. a3 {[%emt 0:09:22]} Qb6 {[%emt 0:02:09]} 19. Nc1 {[%emt 0:02:15]} f6 {[%emt 0:08:57]} 20. Rfe1 {[%emt 0:04:36]} e5 {[%emt 0:01:14]} 21. Bg3 {[%emt 0:06:44]} exd4 {[%emt 0:04:08]} 22. Rxd4 {[%emt 0:05:38]} f5 {[%emt 0:12:20]} 23. Rxd5 {[%emt 0:03:00]} f4 {[%emt 0:03:43]} 24. Bh4 {[%emt 0:01:17]} Ne3 {[%emt 0:03:32]} 25. Bf2 {[%emt 0:04:52]} Rce8 {[%emt 0:01:54]} 26. Bxe3 {[%emt 0:08:18]} Rxe3 {[%emt 0:00:06]} 27. Rxe3 {[%emt 0:01:30]} Qxe3 {[%emt 0:00:02]} 28. Rd1 {[%emt 0:01:39]} Re8 {[%emt 0:03:52]} 29. Nd3 {[%emt 0:00:17]} Rd8 {[%emt 0:00:32]} 30. Qc2 {[%emt 0:00:42]} g5 {[%emt 0:01:47]} 31. Qd2 {[%emt 0:00:46]} Qe6 {[%emt 0:00:50]} 32. Qc2 {[%emt 0:00:43]} Re8 {[%emt 0:03:35]} 33. h3 {[%emt 0:00:27]} Qc4 {[%emt 0:01:01]} 34. Qd2 {[%emt 0:00:31]} a5 {[%emt 0:02:08]} 35. Kg1 {[%emt 0:00:30]} Rd8 {[%emt 0:00:25]} 36. Kh1 {[%emt 0:00:27]} Re8 {[%emt 0:00:53]} 37. Kh2 {[%emt 0:00:31]} Bf6 {[%emt 0:01:12]} 38. Kh1 {[%emt 0:00:24]} Kg7 {[%emt 0:01:32]} 39. Kg1 {[%emt 0:00:00]} Bd8 {[%emt 0:00:00]} 40. Kh2 {[%emt 0:00:00]} Bb6 {[%emt 0:00:00]} 41. Nf2 {[%emt 0:11:48]} Rd8 {[%emt 0:13:14] [#]} 42. Qe1 $1 {[%emt 0:00:07]} Rxd1 {[%emt 0:00:42]} 43. Nxd1 {[%emt 0:01:42]} Qc5 {[%emt 0:03:37]} 44. b4 {[%emt 0:09:31]} Qd6 {[%emt 0:12:15]} 45. Nf2 {[%emt 0:04:21]} h5 $2 ({Black should play} 45... a4 $1 $14) 46. Ne4 Qe7 {[%emt 0:00:53]} 47. c4 {[%emt 0:05:32]} axb4 {[%emt 0:02:45]} 48. axb4 {[%emt 0:00:09]} Qe5 {[%emt 0:02:02]} 49. c5 {[%emt 0:00:26]} Bc7 {[%emt 0:02:31]} 50. Qd2 g4 51. hxg4 {[%emt 0:01:34]} hxg4 {[%emt 0:01:48]} 52. Qd7+ {[%emt 0:00:10]} Kf8 {[%emt 0:00:28]} 53. Qxg4 {[%emt 0:00:50]} Ke7 {[%emt 0:03:27]} 54. Kh3 {[%emt 0:01:13]} Qa1 {[%emt 0:00:59]} 55. Qg5+ {[%emt 0:00:23]} Kf7 {[%emt 0:01:17]} 56. Qf5+ {[%emt 0:00:34]} Ke7 {[%emt 0:00:24]} 57. Qg5+ {[%emt 0:00:45]} Kf7 $1 {[%emt 0:00:06]} 58. Qd5+ {[%emt 0:00:03]} Kf8 {[%emt 0:00:20]} 59. Kh2 {[%emt 0:01:19]} Qh8+ {[%emt 0:00:14]} 60. Kg1 {[%emt 0:00:01]} Qa1+ {[%emt 0:00:13]} 61. Kf2 {[%emt 0:00:06]} Be5 {[%emt 0:00:50]} 62. Qd8+ {[%emt 0:00:38]} Kg7 {[%emt 0:00:51]} 63. Qd7+ {[%emt 0:00:21]} Kf8 {[%emt 0:00:49]} 64. Qd2 {[%emt 0:01:25]} Bd4+ {[%emt 0:00:31]} 65. Ke2 {[%emt 0:00:04]} Be3 {[%emt 0:00:41]} 66. Qd8+ {[%emt 0:00:11]} Kg7 {[%emt 0:00:15]} 67. Qg5+ {[%emt 0:00:07]} Kf7 {[%emt 0:00:33]} 68. Nd6+ {[%emt 0:00:44]} Ke6 {[%emt 0:00:08]} 69. Qf5+ {[%emt 0:00:12]} Ke7 {[%emt 0:00:07]} 70. Qf7+ {[%emt 0:00:09]} Kd8 {[%emt 0:00:10]} 71. Qe8+ {[%emt 0:00:19]} 1-0

[Event "Polish Youth G18 Championship 2023"]
[Site "Jastrzebia Gora"]
[Date "2023.03.13"]
[Round "2.6"]
[White "Nowak, Roksana"]
[Black "Jedrzejko, Martyna"]
[Result "0-1"]
[ECO "C10"]
[WhiteElo "1816"]
[BlackElo "1629"]
[Annotator "NA RC COMBH"]
[PlyCount "98"]
[EventDate "2023.03.11"]
[EventType "swiss"]
[EventCountry "POL"]
[SourceTitle "playchess.com"]
[Source "ChessBase"]
[SourceQuality "1"]
[TimeControl "40/5400+30:1800+30"]

1. e4 {[%emt 0:00:03]} e6 {[%emt 0:00:07]} 2. d4 {[%emt 0:00:07]} d5 {[%emt 0:00:06]} 3. Nc3 {[%emt 0:00:05]} dxe4 {[%emt 0:00:19]} 4. Nxe4 {[%emt 0:00:08]} Bd7 {[%emt 0:00:17]} 5. Nf3 {[%emt 0:00:11]} Bc6 {[%emt 0:00:18]} 6. Bd3 {[%emt 0:00:21]} Nd7 {[%emt 0:00:15]} 7. O-O {[%emt 0:00:30]} Ngf6 {[%emt 0:00:20]} 8. Ng3 {[%emt 0:00:23]} Be7 {[%emt 0:01:15] 8...g6 deserves study.} 9. b3 {[%emt 0:01:04]} O-O {[%emt 0:03:39]} 10. Bb2 {[%emt 0:00:41]} b6 {[%emt 0:09:32]} 11. c4 {[%emt 0:03:45]} Bb7 {[%emt 0:01:21]} 12. Qe2 {[%emt 0:05:10]} c5 {[%emt 0:03:40]} 13. Rad1 {[%emt 0:03:06]} Qc7 {[%emt 0:02:18]} (13... Bxf3 $14 14. Qxf3 cxd4) 14. Ne4 {[%emt 0:17:42]} Nxe4 {[%emt 0:05:38]} 15. Bxe4 {[%emt 0:00:07]} Bxe4 {[%emt 0:00:33]} 16. Qxe4 {[%emt 0:00:08]} cxd4 {[%emt 0:03:16]} 17. Nxd4 {[%emt 0:01:49]} Nf6 {[%emt 0:03:41]} 18. Qf3 {[%emt 0:02:49]} a6 {[%emt 0:02:23] [#]} (18... Rac8 $11) 19. h4 $146 {[%emt 0:07:09]} ({Predecessor:} 19. Rd3 Rad8 20. Rfd1 h6 21. Nc6 Rxd3 22. Nxe7+ Qxe7 23. Qxd3 Qb7 24. Qe3 Kh7 25. Bxf6 gxf6 26. Rd6 {1-0 Iskusnyh,S (2481)-Erukov,N (2116) Novokuznetsk op 2011 (1)}) 19... Rac8 {[%emt 0:02:55]} 20. h5 {[%emt 0:09:14]} h6 {[%emt 0:00:32]} 21. Bc1 {[%emt 0:03:38]} Qc5 {[%emt 0:02:02]} 22. g4 {[%emt 0:00:48]} Nh7 {[%emt 0:02:29]} 23. Be3 {[%emt 0:03:14] [#]} Qc7 $11 {[%emt 0:02:03]} (23... Bg5 $1 $17) 24. Qg2 {[%emt 0:05:46]} Bc5 {[%emt 0:05:50]} 25. g5 {[%emt 0:02:40]} hxg5 {[%emt 0:00:22]} 26. Bxg5 {[%emt 0:02:58]} Nxg5 {[%emt 0:11:18]} 27. Qxg5 {[%emt 0:00:13]} Bxd4 {[%emt 0:01:11]} 28. Rxd4 {[%emt 0:00:08]} Qc5 {[%emt 0:00:11]} 29. Qh4 {[%emt 0:05:12]} Qf5 {[%emt 0:04:03]} 30. Rg4 {[%emt 0:08:51]} Rc5 {[%emt 0:02:57]} 31. h6 {[%emt 0:03:09]} g6 {[%emt 0:00:52]} 32. b4 {[%emt 0:02:37]} Re5 {[%emt 0:00:56]} 33. h7+ {[%emt 0:05:22]} Kg7 {[%emt 0:02:34]} 34. Rg3 {[%emt 0:03:03]} Re4 {[%emt 0:02:41]} 35. Qe7 {[%emt 0:01:46]} Rh8 {[%emt 0:00:58]} 36. Qd6 {[%emt 0:02:38]} Rxh7 {[%emt 0:00:42]} 37. f4 {[%emt 0:00:47]} Qh5 {[%emt 0:00:35]} 38. Rg2 {[%emt 0:00:48]} Qh1+ {[%emt 0:06:09]} 39. Kf2 {[%emt 0:00:04]} Re2+ {[%emt 0:00:50]} 40. Kxe2 {[%emt 0:00:00]} Qxg2+ {[%emt 0:00:00]} 41. Rf2 {[%emt 0:02:06]} Qe4+ {[%emt 0:01:34]} 42. Kd2 {[%emt 0:00:05]} Rh5 {[%emt 0:03:41]} 43. Qc7 {[%emt 0:02:01]} Qd4+ {[%emt 0:00:56]} 44. Ke2 {[%emt 0:00:48]} Qb2+ {[%emt 0:00:13]} 45. Kf3 {[%emt 0:00:32]} Qxb4 {[%emt 0:01:25]} 46. Ke2 {[%emt 0:02:55]} Qb2+ {[%emt 0:00:17]} 47. Kf3 {[%emt 0:00:12]} Qc3+ {[%emt 0:00:29]} 48. Ke2 {[%emt 0:00:27]} Qc2+ {[%emt 0:00:13]} 49. Kf3 {[%emt 0:00:38]} Qd3+ {[%emt 0:00:09]} 0-1

[Event "Polish Youth G18 Championship 2023"]
[Site "Jastrzebia Gora"]
[Date "2023.03.13"]
[Round "2.7"]
[White "Skolska, Emilia"]
[Black "Lukasik, Zuzanna"]
[Result "1-0"]
[ECO "B23"]
[WhiteElo "1586"]
[BlackElo "1781"]
[Annotator "NA RC COMBH"]
[PlyCount "99"]
[EventDate "2023.03.11"]
[EventType "swiss"]
[EventCountry "POL"]
[SourceTitle "playchess.com"]
[Source "ChessBase"]
[SourceQuality "1"]
[TimeControl "40/5400+30:1800+30"]

1. e4 {[%emt 0:00:02]} c5 {[%emt 0:00:44]} 2. Nc3 {[%emt 0:00:08]} Nc6 {[%emt 0:00:47]} 3. f4 {[%emt 0:00:17]} d6 {[%emt 0:02:25]} 4. Nf3 {[%emt 0:00:54]} e6 {[%emt 0:02:40]} 5. Bb5 {[%emt 0:01:43]} a6 {[%emt 0:04:13]} 6. Bxc6+ {[%emt 0:00:11]} bxc6 {[%emt 0:00:06]} 7. O-O {[%emt 0:01:03]} d5 {[%emt 0:19:03]} 8. d3 {[%emt 0:01:26]} Nf6 {[%emt 0:06:32]} 9. Qe1 {[%emt 0:02:56]} Be7 {[%emt 0:05:31]} 10. e5 {[%emt 0:14:19]} Nd7 {[%emt 0:04:13]} 11. Qg3 {[%emt 0:01:21]} g6 {[%emt 0:01:55]} 12. f5 {[%emt 0:13:29]} exf5 {[%emt 0:02:41]} 13. Bh6 {[%emt 0:01:06]} Bf8 {[%emt 0:09:19]} 14. e6 {[%emt 0:15:19]} fxe6 {[%emt 0:03:06]} 15. Bg5 {[%emt 0:00:06]} Be7 {[%emt 0:03:40]} 16. Rae1 {[%emt 0:00:31]} Nf8 {[%emt 0:02:05]} 17. Bf4 {[%emt 0:04:32]} Ra7 {[%emt 0:02:52]} 18. Re2 {[%emt 0:12:12]} Bf6 {[%emt 0:12:04]} 19. Na4 {[%emt 0:05:51]} Qa5 {[%emt 0:02:00]} 20. b3 {[%emt 0:01:04]} Rg8 {[%emt 0:06:13]} 21. h4 {[%emt 0:04:13]} Bd7 {[%emt 0:03:50]} 22. Bd6 {[%emt 0:05:08]} Be7 {[%emt 0:01:29]} 23. Bxe7 {[%emt 0:00:26]} Kxe7 {[%emt 0:00:09]} 24. Qg5+ {[%emt 0:00:45]} Ke8 {[%emt 0:00:46]} 25. Qf6 {[%emt 0:00:43]} Qd8 {[%emt 0:02:06]} 26. Qe5 {[%emt 0:00:07]} Qc7 {[%emt 0:00:58]} 27. Qxc7 {[%emt 0:01:52]} Rxc7 {[%emt 0:00:08]} 28. Nxc5 {[%emt 0:00:03]} Bc8 {[%emt 0:01:09]} 29. Rfe1 {[%emt 0:00:39]} h6 {[%emt 0:01:32]} 30. Nd4 {[%emt 0:00:30]} Kf7 {[%emt 0:00:41]} 31. Ndxe6 {[%emt 0:00:38]} Nxe6 {[%emt 0:00:22]} 32. Nxe6 {[%emt 0:00:08]} Bxe6 {[%emt 0:00:22]} 33. Rxe6 {[%emt 0:00:05]} Rgc8 {[%emt 0:00:45]} 34. Rd6 {[%emt 0:01:40]} h5 {[%emt 0:00:31]} 35. Ree6 {[%emt 0:00:21]} Re7 {[%emt 0:00:29]} 36. Rxe7+ {[%emt 0:00:27]} Kxe7 {[%emt 0:00:05]} 37. Rxg6 {[%emt 0:00:04]} Kf7 {[%emt 0:00:39]} 38. Rh6 {[%emt 0:00:18]} Kg7 {[%emt 0:00:20]} 39. Rxh5 {[%emt 0:00:14]} Kg6 {[%emt 0:00:08]} 40. Rg5+ {[%emt 0:00:00]} Kf6 {[%emt 0:00:00]} 41. Kf2 {[%emt 0:02:36]} Rh8 {[%emt 0:02:06]} 42. g3 {[%emt 0:00:35]} f4 {[%emt 0:00:38]} 43. Rg4 {[%emt 0:01:21]} fxg3+ {[%emt 0:00:17]} 44. Kxg3 {[%emt 0:00:07]} Re8 {[%emt 0:00:22]} 45. h5 {[%emt 0:01:47]} Kf5 {[%emt 0:01:24]} 46. Rg6 {[%emt 0:01:03]} Rc8 {[%emt 0:00:11]} 47. Rg7 {[%emt 0:00:23]} Rh8 {[%emt 0:00:14]} 48. Kh4 {[%emt 0:00:56]} Rh6 {[%emt 0:00:26]} 49. Rf7+ {[%emt 0:00:41]} Ke6 {[%emt 0:00:17]} 50. Ra7 {[%emt 0:00:31]} 1-0

[Event "Polish Youth G18 Championship 2023"]
[Site "Jastrzebia Gora"]
[Date "2023.03.13"]
[Round "2.8"]
[White "Kucharska, Helena"]
[Black "Bialek, Alicja"]
[Result "1-0"]
[ECO "B52"]
[WhiteElo "1779"]
[BlackElo "1576"]
[Annotator "NA RC COMBH"]
[PlyCount "79"]
[EventDate "2023.03.11"]
[EventType "swiss"]
[EventCountry "POL"]
[SourceTitle "playchess.com"]
[Source "ChessBase"]
[SourceQuality "1"]
[TimeControl "40/5400+30:1800+30"]

1. e4 {[%emt 0:01:00]} c5 {[%emt 0:00:01]} 2. Nf3 {[%emt 0:00:41]} d6 {[%emt 0:00:02]} 3. Bb5+ {[%emt 0:00:21]} Bd7 {[%emt 0:00:05]} 4. Bxd7+ {[%emt 0:01:00]} Qxd7 {[%emt 0:01:29]} 5. c4 {[%emt 0:00:34]} e5 {[%emt 0:03:32]} 6. Nc3 {[%emt 0:01:53]} Nc6 {[%emt 0:04:21]} 7. O-O {[%emt 0:02:51]} g6 {[%emt 0:02:49]} 8. d3 {[%emt 0:02:14]} Bg7 {[%emt 0:04:07]} 9. Rb1 {[%emt 0:01:17]} Nf6 {[%emt 0:10:11]} 10. a3 {[%emt 0:06:42]} O-O {[%emt 0:11:16]} 11. b4 {[%emt 0:04:21]} b6 {[%emt 0:00:58]} 12. Bd2 {[%emt 0:03:57]} Nh5 {[%emt 0:06:16]} 13. Nd5 {[%emt 0:03:49]} Ne7 {[%emt 0:07:13]} 14. bxc5 {[%emt 0:16:59]} bxc5 {[%emt 0:00:29]} 15. Qc2 {[%emt 0:05:36]} f5 {[%emt 0:10:38]} 16. Rb3 {[%emt 0:02:27]} Nc6 {[%emt 0:13:15]} 17. Rfb1 {[%emt 0:03:29]} fxe4 {[%emt 0:04:19]} 18. dxe4 {[%emt 0:01:35]} Nd4 {[%emt 0:03:41]} 19. Nxd4 {[%emt 0:01:13]} exd4 {[%emt 0:00:08]} 20. f3 {[%emt 0:00:47]} Qa4 {[%emt 0:05:37]} 21. Qd3 {[%emt 0:00:58]} Nf6 {[%emt 0:03:46]} 22. Nc7 {[%emt 0:08:59]} Rac8 {[%emt 0:00:15]} 23. Rb7 {[%emt 0:02:34]} Nd7 {[%emt 0:02:12]} 24. Ne6 {[%emt 0:09:04]} Rf7 {[%emt 0:00:56]} 25. f4 {[%emt 0:01:26]} Bh6 {[%emt 0:04:33]} 26. h4 {[%emt 0:05:05]} Nb6 {[%emt 0:00:36]} 27. Rxf7 {[%emt 0:01:57]} Kxf7 {[%emt 0:00:02]} 28. Rc1 {[%emt 0:01:05]} Qd7 {[%emt 0:00:55]} 29. f5 {[%emt 0:03:41]} Bxd2 {[%emt 0:00:39]} 30. Qxd2 {[%emt 0:00:11]} Qe7 {[%emt 0:00:11]} 31. Qh6 {[%emt 0:01:52]} gxf5 {[%emt 0:00:56]} 32. exf5 {[%emt 0:00:58]} Kg8 {[%emt 0:00:15]} 33. Rf1 {[%emt 0:02:06]} Qf7 {[%emt 0:00:33]} 34. f6 {[%emt 0:01:06]} Nd7 {[%emt 0:00:19]} 35. Ng5 {[%emt 0:01:28]} Qg6 {[%emt 0:00:20]} 36. f7+ {[%emt 0:00:21]} Kh8 {[%emt 0:00:14]} 37. f8=Q+ {[%emt 0:00:15]} Nxf8 {[%emt 0:00:15]} 38. Rxf8+ {[%emt 0:00:06]} Rxf8 {[%emt 0:00:09]} 39. Qxf8+ {[%emt 0:00:04]} Qg8 {[%emt 0:00:07]} 40. Nf7# {[%emt 0:00:00]} 1-0

[Event "Polish Youth G18 Championship 2023"]
[Site "Jastrzebia Gora"]
[Date "2023.03.13"]
[Round "2.9"]
[White "Kaznowska, Kinga"]
[Black "Krzyzosiak, Marta"]
[Result "1/2-1/2"]
[ECO "B90"]
[WhiteElo "1352"]
[BlackElo "1778"]
[Annotator "NA RC COMBH"]
[PlyCount "132"]
[EventDate "2023.03.11"]
[EventType "swiss"]
[EventCountry "POL"]
[SourceTitle "playchess.com"]
[Source "ChessBase"]
[SourceQuality "1"]
[TimeControl "40/5400+30:1800+30"]

1. e4 {[%emt 0:00:02]} c5 {[%emt 0:00:05]} 2. Nf3 {[%emt 0:00:05]} d6 {[%emt 0:00:06]} 3. d4 {[%emt 0:00:06]} cxd4 {[%emt 0:00:08]} 4. Nxd4 {[%emt 0:00:05]} Nf6 {[%emt 0:00:06]} 5. Nc3 {[%emt 0:00:05]} a6 {[%emt 0:00:07]} 6. Be3 {[%emt 0:00:52]} e5 {[%emt 0:00:15]} 7. Nf3 {[%emt 0:00:12]} Be7 {[%emt 0:01:16]} 8. Bc4 {[%emt 0:00:22]} Be6 {[%emt 0:04:51]} 9. Bd5 {[%emt 0:06:12]} Bxd5 {[%emt 0:03:33]} 10. Nxd5 {[%emt 0:00:08]} Nxd5 {[%emt 0:00:41]} 11. Qxd5 {[%emt 0:00:12]} Nc6 {[%emt 0:04:18]} 12. O-O-O {[%emt 0:01:47]} O-O {[%emt 0:05:18]} 13. Qb3 {[%emt 0:00:52]} b5 {[%emt 0:05:28]} 14. a3 {[%emt 0:03:24]} Rc8 {[%emt 0:05:38]} 15. Rd5 {[%emt 0:02:44]} Na5 {[%emt 0:08:08]} 16. Qd3 {[%emt 0:00:48]} Nc4 {[%emt 0:01:36]} 17. b4 Qc7 {[%emt 0:03:18]} 18. Re1 {[%emt 0:17:18]} Nxa3 {[%emt 0:06:38]} 19. Re2 {[%emt 0:07:54]} Nc4 {[%emt 0:01:05]} 20. Nd2 {[%emt 0:00:27]} Nxd2 {[%emt 0:07:16]} 21. Bxd2 {[%emt 0:00:32]} Qc4 {[%emt 0:01:41]} 22. Kb2 {[%emt 0:01:35]} Qxd3 {[%emt 0:07:30]} 23. Rxd3 {[%emt 0:00:12]} Rc4 {[%emt 0:01:34]} 24. Ra3 {[%emt 0:00:50]} Rfc8 {[%emt 0:03:17]} 25. c3 {[%emt 0:01:11]} R4c6 {[%emt 0:02:09]} 26. Re1 {[%emt 0:00:31]} Ra8 {[%emt 0:01:31]} 27. Rea1 {[%emt 0:00:17]} Bd8 {[%emt 0:00:45]} 28. f3 {[%emt 0:00:13]} Kf8 {[%emt 0:00:39]} 29. f4 {[%emt 0:01:13]} exf4 {[%emt 0:02:34]} 30. Bxf4 {[%emt 0:00:07]} Bf6 {[%emt 0:00:53]} 31. Rd1 {[%emt 0:01:22]} Ke7 {[%emt 0:02:41]} 32. h3 {[%emt 0:09:42]} Rac8 {[%emt 0:02:12]} 33. Rd3 {[%emt 0:01:01]} g5 {[%emt 0:03:43]} 34. Bh2 {[%emt 0:02:06]} h6 {[%emt 0:00:35]} 35. Kc2 {[%emt 0:02:49]} Ke6 {[%emt 0:02:26]} 36. Kd2 {[%emt 0:00:49]} Rd8 {[%emt 0:02:06]} 37. Rd5 {[%emt 0:01:39]} Rdc8 {[%emt 0:05:09]} 38. Rd3 {[%emt 0:00:11]} Be5 {[%emt 0:01:02]} 39. Bxe5 {[%emt 0:02:33]} dxe5 {[%emt 0:00:02]} 40. g4 {[%emt 0:00:00]} R8c7 {[%emt 0:00:00]} 41. Rd5 {[%emt 0:01:38]} Rd7 {[%emt 0:02:10]} 42. Rxd7 {[%emt 0:00:34]} Kxd7 {[%emt 0:00:06]} 43. Ra1 {[%emt 0:00:42]} Rd6+ {[%emt 0:01:03]} 44. Ke2 {[%emt 0:00:27]} Ke7 {[%emt 0:10:34]} 45. Rf1 {[%emt 0:02:24]} f6 {[%emt 0:01:02]} 46. Ra1 {[%emt 0:02:40]} Kd7 {[%emt 0:05:12]} 47. Ra2 {[%emt 0:03:59]} Kc7 {[%emt 0:00:03]} 48. Ra5 {[%emt 0:00:20]} Kb6 {[%emt 0:00:21]} 49. Ra1 {[%emt 0:00:57]} Rc6 {[%emt 0:01:05]} 50. Kd2 {[%emt 0:00:12]} Rc7 {[%emt 0:02:49]} 51. Rf1 {[%emt 0:00:44]} Rf7 {[%emt 0:01:08]} 52. Ra1 {[%emt 0:02:26]} Rd7+ {[%emt 0:01:46]} 53. Kc2 {[%emt 0:01:28]} Rd6 {[%emt 0:00:22]} 54. Ra2 {[%emt 0:00:56]} Kc7 {[%emt 0:01:33]} 55. Ra1 {[%emt 0:00:15]} Kd7 {[%emt 0:00:03]} 56. Rf1 {[%emt 0:00:47]} Ke7 {[%emt 0:00:16]} 57. Rd1 {[%emt 0:05:01]} Rxd1 {[%emt 0:01:57]} 58. Kxd1 {[%emt 0:00:07]} Kd6 {[%emt 0:03:36]} 59. Kc2 {[%emt 0:00:07]} Kc6 {[%emt 0:01:18]} 60. Kb3 {[%emt 0:00:28]} Kb6 {[%emt 0:03:56]} 61. c4 bxc4+ 62. Kxc4 Kc6 63. Kc3 Kb5 64. Kb3 Kb6 65. Ka4 Kc6 66. Kb3 Kb6 1/2-1/2

[Event "Polish Youth G18 Championship 2023"]
[Site "Jastrzebia Gora"]
[Date "2023.03.13"]
[Round "2.10"]
[White "Barwinska, Ewa"]
[Black "Sivickis, Kornelia"]
[Result "1-0"]
[ECO "A06"]
[WhiteElo "1963"]
[BlackElo "1328"]
[Annotator "TA"]
[PlyCount "63"]
[EventDate "2023.03.11"]
[EventType "swiss"]
[EventCountry "POL"]
[SourceTitle "playchess.com"]
[Source "ChessBase"]
[SourceQuality "1"]
[TimeControl "40/5400+30:1800+30"]

{[%evp 9,62,20,58,55,38,47,70,71,75,30,95,66,134,121,189,208,216,218,215,207,212,220,199,214,261,214,267,214,244,198,355,345,392,363,441,424,456,399,568,571,705,726,752,772,1320,1340,2824,2691,29977,10998,29990,29991,29992,29993,29999]} 1. Nf3 {[%emt 0:00:01]} d5 {[%emt 0:00:06]} 2. g3 {[%emt 0:00:10]} g6 {[%emt 0:00:09]} 3. Bg2 {[%emt 0:02:22]} c5 {[%emt 0:00:16]} 4. d4 {[%emt 0:04:28]} Bg7 {[%emt 0:01:29]} 5. O-O {[%emt 0:02:29]} Nc6 {[%emt 0:02:03][%cal Rc6d4]} 6. dxc5 {[%emt 0:09:34][%cal Oc2c4] D02: 1 d4 d5 2 Nf3 sidelines, including 2...Nf6 3 g3 and 2...Nf6 3 Bf4.} Nf6 {[%emt 0:01:44]} 7. c3 {[%emt 0:09:20]} a5 {[%emt 0:03:38]} 8. Na3 {[%emt 0:04:00][%cal Bb1a3,Ba3b5,Bb5d6][%mdl 32] White is slightly better.} O-O {[%emt 0:06:27]} 9. Nb5 {[%emt 0:12:01]} Ne4 {[%emt 0:09:44]} (9... a4 $11 {remains equal.}) 10. Be3 {[%emt 0:02:22] [#] Black is on the road to losing.} e5 $146 {[%emt 0:05:26]} ({Better is} 10... a4 $14) ({Predecessor:} 10... a4 11. Nd2 a3 12. Nxe4 axb2 13. Rb1 dxe4 14. Qxd8 Rxd8 15. Rxb2 f5 16. f3 Ne5 {½-½ Ostapets,D (1755)-Loy,K (2145) Zaporozhye Ermak Cup 7th 2011 (7)}) 11. Nd2 $16 {[%emt 0:07:11]} Nxd2 {[%emt 0:01:08]} (11... Nf6 $16 {was necessary.}) 12. Qxd2 $18 {[%emt 0:00:30]} (12. Bxd2 $6 Be6 $16) 12... Be6 {[%emt 0:04:55]} 13. Nd6 {[%emt 0:03:50]} d4 {[%emt 0:04:16]} 14. cxd4 {[%emt 0:00:42]} ({Stronger than} 14. Nxb7 Qc7 15. Nd6 (15. cxd4 $2 exd4 16. Bf4 Qxb7 $19) 15... dxe3 16. Qxe3 Rab8 $17) 14... exd4 {[%emt 0:00:14]} 15. Bh6 {[%emt 0:01:46]} (15. Nxb7 $2 {perishes.} Qc7 16. Bf4 (16. Bxc6 $2 Qxc6 17. Nxa5 Qxc5 $19) 16... Qxb7 $19) 15... Bxh6 {[%emt 0:08:07]} 16. Qxh6 {[%emt 0:00:13]} Qd7 {[%emt 0:06:42]} 17. Qh4 {[%emt 0:06:48]} f5 {[%emt 0:04:14]} 18. Qf4 {[%emt 0:02:33]} Rad8 {[%emt 0:02:44]} 19. e3 {[%emt 0:04:47]} dxe3 {[%emt 0:01:05]} (19... b6) 20. Qxe3 {[%emt 0:00:17]} (20. fxe3 b6 $16) 20... Bf7 {[%emt 0:00:52]} 21. Rad1 {[%emt 0:01:35]} Qc7 {[%emt 0:04:55]} 22. Qc3 {[%emt 0:04:48]} Rd7 {[%emt 0:06:43]} 23. h4 {[%emt 0:03:59][%cal Bh2h4,Bh4h5,Bh5h6][%mdl 32]} Nd8 {[%emt 0:09:50] [#]} (23... h5 $142 24. Nxf7 Rdxf7) 24. h5 $1 {[%emt 0:02:39][%mdl 512]} Ne6 {[%emt 0:06:01]} (24... a4 25. Rfe1) 25. Nxb7 {[%emt 0:02:00]} ({Not} 25. Bxb7 Qxc5 26. Nxf7 Qxc3 27. bxc3 Rxb7 $16) 25... Rc8 {[%emt 0:01:26]} 26. c6 {[%emt 0:00:53]} Re7 {[%emt 0:00:54]} 27. h6 {[%emt 0:02:32]} Be8 {[%emt 0:01:29]} 28. Nd6 {[%emt 0:02:46] [#] White wants to mate with Nxe8.} Rd8 {[%emt 0:02:03]} 29. Nxe8 {[%emt 0:00:31]} Rdxe8 {[%emt 0:00:19]} 30. Bd5 {[%emt 0:00:20] White mates.} Rf7 {[%emt 0:02:42]} 31. Rfe1 {[%emt 0:00:46]} Ng7 {[%emt 0:03:41]} 32. Qxg7# {[%mdl 64] Pin.   Weighted Error Value: White=0.16 (very precise) /Black=0.86} 1-0